bitfinex-derivatives/quotes_BNBF0:USTF0_20250509
["timestamp","ask_amount","ask_price","bid_price","bid_amount"]
[1746798731349,0.28076966,644.18,642.68,1.155]
[1746798731748,0.28076966,644.17,642.68,1.155]
[1746798732047,0.28076966,644.16,642.68,1.155]
[1746798732349,0.28076966,644.15,642.68,1.155]
[1746798732749,0.28076966,644.14,642.68,1.155]
[1746798733050,0.28076966,644.13,642.68,1.155]
[1746798733350,0.28076966,644.12,642.68,1.155]
[1746798733750,0.28076966,644.11,642.68,1.155]
[1746798734051,0.55134358,644.11,642.68,1.155]
[1746798734248,0.28076966,644.1,642.68,1.155]
[1746798734753,0.28076966,644.09,642.68,1.155]
[1746798735448,0.27057392,644.11,642.68,1.155]
[1746798735651,0.28074481,644.1,642.68,1.155]
[1746798735851,0.28074481,644.09,642.68,1.155]
[1746798736146,0.28074481,644.08,642.68,1.155]
[1746798736352,2.03334999,644.06,642.68,1.155]
[1746798736851,0.28074481,644.05,642.68,1.155]
[1746798737348,0.28074481,644.04,642.68,1.155]
[1746798737752,0.28074481,644.03,642.68,1.155]
[1746798738353,0.28074481,644.02,642.68,1.155]
[1746798738754,0.28074481,644.01,642.68,1.155]
[1746798739246,0.28074481,644.0,642.68,1.155]
[1746798739447,0.28074481,643.99,642.68,1.155]
[1746798739847,0.28074481,643.98,642.68,1.155]
[1746798740148,0.28074481,643.97,642.68,1.155]
[1746798740353,0.28074481,643.96,642.68,1.155]
[1746798740654,0.28074481,643.95,642.68,1.155]
[1746798741257,0.28074481,643.94,642.68,1.155]
[1746798741457,0.28074481,643.94,642.69,1.14585557]
[1746798741659,0.28074481,643.93,642.68,0.458]
[1746798741860,0.28074481,643.92,642.56,0.31125498]
[1746798742053,0.28074481,643.92,642.57,1.14579449]
[1746798742254,0.28074481,643.91,642.58,1.14579449]
[1746798742755,0.28074481,643.9,642.58,1.14579449]
[1746798742955,0.55128297,643.9,642.59,1.14579449]
[1746798743259,0.28074481,643.89,642.6,1.14579449]
[1746798743562,0.28074481,643.89,642.61,1.14579449]
[1746798743962,0.28074481,643.89,642.62,1.14579449]
[1746798744258,0.28074481,643.89,642.63,1.14579449]
[1746798744459,0.28074481,643.89,642.64,1.14579449]
[1746798744665,0.28074481,643.89,642.65,1.14579449]
[1746798745165,0.28074481,643.89,642.66,1.14579449]
[1746798745365,0.28074481,643.88,642.64,0.545]
[1746798745664,0.28074481,643.87,642.64,0.545]
[1746798745965,0.28074481,643.86,642.64,0.545]
[1746798746367,0.28074481,643.85,642.64,0.545]
[1746798746662,0.28074481,643.84,642.64,0.545]
[1746798747065,0.28074481,643.83,642.64,0.545]
[1746798747460,0.28074481,643.83,642.64,0.54045139]
[1746798747761,0.28074481,643.89,642.64,0.54045139]
[1746798747958,0.28074481,643.82,642.64,0.54045139]
[1746798748160,0.28074481,643.89,642.64,0.54045139]
[1746798748865,2.03334999,644.93,642.64,0.54045139]
[1746798748866,2.03334999,644.01,642.64,0.54045139]
[1746798749064,0.27053395,643.88,642.64,0.54045139]
[1746798749259,2.03334999,644.01,642.64,0.54045139]
[1746798749460,0.28049289,644.0,642.64,0.54045139]
[1746798749664,0.27058444,643.87,642.64,0.54045139]
[1746798749865,0.28049289,643.99,642.64,0.54045139]
[1746798750065,0.27058549,643.86,642.64,0.54045139]
[1746798750366,0.28049289,643.98,642.64,0.54045139]
[1746798750566,0.55106891,643.85,642.64,0.54045139]
[1746798750866,0.28049289,643.84,642.64,0.54045139]
[1746798751161,0.28049289,643.83,642.64,0.54045139]
[1746798751666,0.28049289,643.82,642.64,0.54045139]
[1746798751865,0.55108469,643.82,642.64,0.54045139]
[1746798752266,0.2705918,643.82,642.64,0.54045139]
[1746798752667,0.28049289,643.81,642.64,0.54045139]
[1746798753071,0.28049289,643.8,642.64,0.54045139]
[1746798753270,0.8665918,643.82,642.64,0.54045139]
[1746798753570,0.28048401,643.81,642.64,0.54045139]
[1746798753971,0.28048401,643.8,642.64,0.54045139]
[1746798754271,0.28048401,643.81,642.64,0.54045139]
[1746798755066,0.27058549,643.8,642.64,0.54045139]
[1746798755473,0.28048401,643.79,642.64,0.54045139]
[1746798756867,0.28048401,643.79,642.66,0.31120654]
[1746798757775,0.27057392,643.78,642.66,0.31120654]
[1746798758274,0.28048401,643.77,642.66,0.31120654]
[1746798763879,0.27069073,643.76,642.66,0.31120654]
[1746798764381,0.28048401,643.75,642.66,0.31120654]
[1746798765781,0.28048401,643.75,642.66,0.82920654]
[1746798767181,0.7,643.74,642.66,0.82920654]
[1746798767680,0.28048401,643.73,642.66,0.82920654]
[1746798771186,0.7,643.74,642.66,0.82920654]
[1746798772786,0.27046877,643.73,642.66,0.82920654]
[1746798773988,0.28024434,643.72,642.66,0.82920654]
[1746798776288,0.27046877,643.73,642.66,0.82920654]
[1746798776889,0.28023338,643.72,642.66,0.82920654]
[1746798777190,0.27046877,643.73,642.66,0.82920654]
[1746798783794,0.28024294,643.72,642.66,0.82920654]
[1746798784594,0.7,643.74,642.66,0.82920654]
[1746798784994,0.2704961,643.73,642.66,0.82920654]
[1746798787599,2.03334999,645.12,642.66,0.82920654]
[1746798787796,0.27030281,643.78,642.66,0.82920654]
[1746798788194,0.28016415,645.11,642.66,0.82920654]
[1746798788397,0.27030281,643.78,642.66,0.82920654]
[1746798788698,2.03334999,645.12,642.66,0.82920654]
[1746798788893,0.614,643.77,642.66,0.82920654]
[1746798807106,0.27046772,643.76,642.66,0.82920654]
[1746798808011,0.27046772,643.76,642.66,1.49220654]
[1746798808610,0.614,643.77,642.66,1.49220654]
[1746798809015,0.27046772,643.75,642.66,1.49220654]
[1746798811319,0.2803079,643.74,642.66,1.49220654]
[1746798816015,0.27046772,643.75,642.66,1.49220654]
[1746798817122,0.2803532,643.74,642.66,1.49220654]
[1746798818925,0.27046772,643.75,642.66,1.49220654]
[1746798820626,2.03334999,644.88,642.66,1.49220654]
[1746798820827,0.96637841,643.74,642.66,1.49220654]
[1746798821221,0.696,643.74,642.66,1.49220654]
[1746798821421,0.27047718,643.73,642.66,1.49220654]
[1746798822426,0.28024638,643.72,642.66,1.49220654]
[1746798822628,0.27047718,643.73,642.66,1.49220654]
[1746798822927,0.28022289,643.72,642.66,1.49220654]
[1746798823227,0.27047718,643.73,642.66,1.49220654]
[1746798823628,0.696,643.74,642.66,1.49220654]
[1746798823827,0.96645616,643.74,642.66,1.49220654]
[1746798826631,0.696,643.74,642.66,1.49220654]
[1746798826828,0.96645616,643.74,642.66,1.49220654]
[1746798827125,0.696,643.74,642.66,1.49220654]
[1746798837833,0.27041413,643.94,642.66,1.49220654]
[1746798838739,2.03334999,645.78,642.66,1.49220654]
[1746798838938,0.27019158,643.98,642.66,1.49220654]
[1746798839137,0.28008847,645.77,642.66,1.49220654]
[1746798839338,0.27019263,643.98,642.66,1.49220654]
[1746798839741,2.03334999,645.78,642.67,0.28560697]
[1746798839934,0.27019158,643.98,642.67,0.28560697]
[1746798840138,2.03334999,645.78,642.69,0.31119202]
[1746798840334,2.03334999,645.78,642.7,0.28560697]
[1746798840538,0.27019263,643.98,642.7,0.28560697]
[1746798840741,0.552,645.77,642.7,0.28560697]
[1746798841044,0.27016851,644.08,642.7,0.28560697]
[1746798841238,0.28006812,644.07,642.7,0.28560697]
[1746798841445,0.27016955,644.08,642.7,0.28560697]
[1746798841643,0.28006812,644.07,642.7,0.28560697]
[1746798842244,0.28006812,644.07,642.71,0.508]
[1746798842544,0.28006812,644.07,642.72,0.28560697]
[1746798842943,0.27016955,644.08,642.72,0.28560697]
[1746798844648,0.552,645.77,642.72,0.28560697]
[1746798844848,0.27018109,644.07,642.72,0.28560697]
[1746798845245,0.552,645.77,642.72,0.28560697]
[1746798845443,0.27018004,644.06,642.72,0.28560697]
[1746798845747,2.03334999,645.54,642.71,0.508]
[1746798845947,0.27017899,644.05,642.72,0.28556974]
[1746798846143,2.03334999,645.54,642.72,0.28556974]
[1746798846449,0.27020417,644.04,642.72,0.28556974]
[1746798846748,2.03334999,645.54,642.72,0.28556974]
[1746798846949,0.27019053,644.08,642.72,0.28556974]
[1746798847247,0.552,645.77,642.72,0.28556974]
[1746798847447,0.27016641,644.08,642.72,0.28556974]
[1746798847642,0.27016641,644.08,642.71,0.508]
[1746798847843,0.552,645.77,642.73,0.28555039]
[1746798848051,0.27016641,644.08,642.72,0.28555039]
[1746798848245,0.552,645.77,642.72,0.28555039]
[1746798848547,0.27016746,644.08,642.72,0.28555039]
[1746798848850,0.552,645.77,642.72,0.28555039]
[1746798849149,0.27016641,644.08,642.72,0.28555039]
[1746798849446,0.552,645.77,642.72,0.28555039]
[1746798849643,0.27016641,644.08,642.72,0.28555039]
[1746798849848,0.552,645.77,642.72,0.28555039]
[1746798850143,0.27016641,644.08,642.72,0.28555039]
[1746798850449,0.552,645.77,642.72,0.28555039]
[1746798850648,0.27015907,644.12,642.72,0.28555039]
[1746798851149,0.27014753,644.17,642.72,0.28555039]
[1746798852650,0.27014753,644.17,642.73,0.475]
[1746798852850,0.27014753,644.17,642.75,0.31116297]
[1746798853149,0.27014753,644.17,642.76,0.28555039]
[1746798853345,0.27014753,644.17,642.78,0.31114844]
[1746798853550,0.27014753,644.17,642.79,0.28555039]
[1746798855251,0.552,645.77,642.79,0.28555039]
[1746798855552,0.27012552,644.24,642.79,0.28555039]
[1746798855748,0.552,645.77,642.78,0.31114844]
[1746798856052,0.27012027,644.27,642.78,0.31114844]
[1746798856252,0.552,645.77,642.78,0.31114844]
[1746798857052,0.27012132,645.76,642.78,0.31114844]
[1746798857252,0.55006144,645.76,642.79,0.28546004]
[1746798857457,0.27994012,645.75,642.79,0.28546004]
[1746798857750,0.27994012,645.74,642.79,0.28546004]
[1746798858152,0.27994012,645.73,642.79,0.28546004]
[1746798858449,0.27994012,645.72,642.79,0.28546004]
[1746798859052,0.27994012,645.71,642.79,0.28546004]
[1746798859558,0.27994012,645.7,642.79,0.28546004]
[1746798859856,0.55002895,645.7,642.79,0.28546004]
[1746798860056,0.27994012,645.69,642.93,0.31107585]
[1746798860854,0.27994012,645.68,642.94,0.28546004]
[1746798861055,0.27994012,645.68,643.07,0.31100813]
[1746798861252,0.27994012,645.67,643.07,0.31100813]
[1746798861452,0.27994012,645.66,643.08,0.28546004]
[1746798861648,0.27994012,645.66,643.2,0.31094527]
[1746798862050,0.27994012,645.65,643.21,0.28546004]
[1746798862250,0.27994012,645.64,643.21,0.28546004]
[1746798862454,0.27994012,645.63,643.33,0.31088243]
[1746798862955,0.27994012,645.62,643.33,0.31088243]
[1746798863152,0.27004062,645.62,643.33,0.31088243]
[1746798863350,0.27986536,645.61,643.33,0.31088243]
[1746798863755,0.27986536,645.6,643.33,0.31088243]
[1746798864155,0.27986536,645.59,643.33,0.31088243]
[1746798864456,0.27986536,645.58,643.33,0.31088243]
[1746798864854,0.27986536,645.57,643.33,0.31088243]
[1746798865056,0.27986536,645.56,643.33,0.31088243]
[1746798865359,0.27986536,645.55,643.33,0.31088243]
[1746798865655,0.27986536,645.61,643.33,0.31088243]
[1746798865850,0.27986536,645.54,643.33,0.31088243]
[1746798866050,0.27986536,645.61,643.33,0.31088243]
[1746798867251,0.27986536,645.6,643.33,0.31088243]
[1746798867455,0.27986536,645.59,643.33,0.31088243]
[1746798867756,0.27986536,645.58,643.33,0.31088243]
[1746798867957,0.95286536,645.58,643.33,0.31088243]
[1746798868256,0.27986536,645.57,643.33,0.31088243]
[1746798868453,0.27986536,645.56,643.33,0.31088243]
[1746798868850,0.54996991,645.55,643.33,0.31088243]
[1746798869256,0.27986536,645.54,643.33,0.31088243]
[1746798869552,0.27986536,645.53,643.33,0.31088243]
[1746798869756,0.27986536,645.52,643.33,0.31088243]
[1746798870052,0.27986536,645.51,643.33,0.31088243]
[1746798870456,0.27986536,645.5,643.33,0.31088243]
[1746798871050,0.27986536,645.49,643.33,0.31088243]
[1746798871452,0.27986536,645.48,643.33,0.31088243]
[1746798871858,0.27986536,645.48,643.34,0.533]
[1746798872058,0.27986536,645.47,643.34,0.533]
[1746798872257,0.27986536,645.46,643.34,0.533]
[1746798872558,0.27986536,645.45,643.34,0.533]
[1746798872755,0.27986536,645.44,643.34,0.533]
[1746798873160,0.27986536,645.43,643.34,0.533]
[1746798873359,0.27986536,645.42,643.34,0.533]
[1746798873654,0.27986536,645.41,643.34,0.533]
[1746798874059,0.27010455,645.55,643.34,0.533]
[1746798874060,0.27986536,645.4,643.34,0.533]
[1746798874359,0.27986536,645.39,643.34,0.533]
[1746798874658,0.27986536,645.38,643.34,0.533]
[1746798874961,0.5499458,645.38,643.34,0.533]
[1746798875162,0.27986536,645.37,643.34,0.533]
[1746798875863,2.03334999,645.22,643.34,0.533]
[1746798876059,0.27986536,645.21,643.34,0.533]
[1746798876563,0.27986536,645.2,643.34,0.533]
[1746798876959,0.27986536,645.19,643.34,0.533]
[1746798877263,0.27986536,645.18,643.34,0.533]
[1746798877964,0.55003072,645.17,643.34,0.533]
[1746798878167,2.03334999,645.12,643.34,0.533]
[1746798878766,0.27986536,645.11,643.34,0.533]
[1746798879165,0.27986536,645.1,643.34,0.533]
[1746798879571,0.27986536,645.09,643.34,0.533]
[1746798879970,0.27986536,645.08,643.34,0.533]
[1746798880570,0.27986536,645.07,643.34,0.533]
[1746798880970,0.27986536,645.06,643.34,0.533]
[1746798881270,0.27986536,645.05,643.34,0.533]
[1746798881467,0.27016851,645.07,643.34,0.533]
[1746798881769,0.28003142,645.06,643.34,0.533]
[1746798882073,0.28003142,645.05,643.34,0.533]
[1746798882373,0.28003142,645.06,643.34,0.533]
[1746798883873,0.28003142,645.33,643.34,0.533]
[1746798884073,0.27012132,645.05,643.34,0.533]
[1746798884273,0.27012132,645.05,643.36,0.31086794]
[1746798884474,0.28003142,645.04,643.36,0.31086794]
[1746798884675,0.55015379,645.04,643.36,0.31086794]
[1746798884873,0.27012237,645.04,643.36,0.31086794]
[1746798885075,0.28003142,645.03,643.36,0.31086794]
[1746798886885,0.27016221,645.02,643.36,0.31086794]
[1746798887274,0.28003142,645.01,643.36,0.31086794]
[1746798889680,0.449,645.0,643.36,0.31086794]
[1746798890073,0.28003142,644.99,643.36,0.31086794]
[1746798890380,0.28003142,644.99,643.37,0.686]
[1746798892575,0.28003142,644.99,643.39,0.31085344]
[1746798893179,0.449,645.0,643.39,0.31085344]
[1746798893375,0.28001133,644.98,643.39,0.31085344]
[1746798893579,0.28001133,644.99,643.39,0.31085344]
[1746798897679,0.28001133,644.98,643.39,0.31085344]
[1746798897979,0.28001133,644.97,643.39,0.31085344]
[1746798898282,0.28001133,644.96,643.39,0.31085344]
[1746798898885,0.449,645.0,643.39,0.31085344]
[1746798898886,0.27011713,644.95,643.39,0.31085344]
[1746798899384,0.27986962,644.94,643.39,0.31085344]
[1746798901886,0.27013705,644.93,643.39,0.31085344]
[1746798902288,0.27986962,644.92,643.39,0.31085344]
[1746798904090,0.611,644.91,643.39,0.31085344]
[1746798904590,0.27986962,644.9,643.39,0.31085344]
[1746798904890,0.27986962,644.89,643.39,0.31085344]
[1746798905389,0.27986962,644.88,643.39,0.31085344]
[1746798905589,0.27986962,644.87,643.39,0.31085344]
[1746798905890,0.27986962,644.89,643.39,0.31085344]
[1746798906290,0.27986962,644.88,643.39,0.31085344]
[1746798906687,0.27986962,644.87,643.39,0.31085344]
[1746798907292,0.27986962,644.86,643.39,0.31085344]
[1746798907792,0.27986962,644.85,643.39,0.31085344]
[1746798908096,0.27986962,644.84,643.39,0.31085344]
[1746798908689,0.27986962,644.89,643.39,0.31085344]
[1746798908893,0.27986962,644.88,643.39,0.31085344]
[1746798909293,0.27986962,644.87,643.39,0.31085344]
[1746798909595,0.27986962,644.86,643.39,0.31085344]
[1746798909793,0.27986962,644.85,643.39,0.31085344]
[1746798910093,0.27986962,644.89,643.39,0.31085344]
[1746798910388,0.27986962,644.88,643.39,0.31085344]
[1746798910786,0.27986962,644.87,643.39,0.31085344]
[1746798910986,0.5500161,644.87,643.39,0.31085344]
[1746798911193,0.27986962,644.86,643.39,0.31085344]
[1746798911392,0.27986962,644.85,643.39,0.31085344]
[1746798911792,0.27986962,644.84,643.39,0.31085344]
[1746798912093,0.27986962,644.86,643.39,0.31085344]
[1746798913893,0.27013285,644.85,643.39,0.31085344]
[1746798914294,0.27986962,644.84,643.39,0.31085344]
[1746798915195,0.27986962,644.84,643.4,0.597]
[1746798916793,0.611,644.91,643.4,0.597]
[1746798916989,0.27014439,644.83,643.4,0.597]
[1746798917191,0.611,644.91,643.4,0.597]
[1746798917494,0.2701381,644.82,643.4,0.597]
[1746798917695,0.611,644.91,643.4,0.597]
[1746798917994,0.27013914,644.81,643.4,0.597]
[1746798918190,0.27990423,644.9,643.4,0.597]
[1746798918493,0.27012971,644.8,643.4,0.597]
[1746798918796,0.27990423,644.9,643.4,0.597]
[1746798918996,0.55004967,644.79,643.4,0.597]
[1746798919198,0.27990423,644.78,643.4,0.597]
[1746798919596,0.5500612,644.78,643.4,0.597]
[1746798920090,0.27990423,644.77,643.4,0.597]
[1746798920292,0.27990423,644.77,643.42,0.31083895]
[1746798922900,0.2701706,644.76,643.42,0.31083895]
[1746798923399,0.27990423,644.75,643.42,0.31083895]
[1746798928899,0.55007693,644.74,643.42,0.31083895]
[1746798929704,0.27990423,644.73,643.42,0.31083895]
[1746798929999,0.27990423,644.72,643.42,0.31083895]
[1746798930506,0.27990423,644.73,643.42,0.31083895]
[1746798932003,0.2701748,644.72,643.42,0.31083895]
[1746798932899,0.27992316,644.71,643.42,0.31083895]
[1746798933904,0.27992316,644.71,643.42,0.92983895]
[1746798934104,0.2701748,644.72,643.42,0.92983895]
[1746798934308,0.27995589,644.71,643.42,0.92983895]
[1746798934901,0.27995589,645.84,643.42,0.92983895]
[1746798935105,0.27006472,644.7,643.42,0.92983895]
[1746798935506,0.27995589,645.83,643.42,0.92983895]
[1746798935702,0.55002166,644.69,643.42,0.92983895]
[1746798935905,0.27995589,644.69,643.42,0.92983895]
[1746798936107,0.27995589,644.68,643.42,0.92983895]
[1746798936307,0.55014223,644.68,643.42,0.92983895]
[1746798936707,0.27995589,644.67,643.42,0.92983895]
[1746798938008,0.27020836,644.66,643.42,0.92983895]
[1746798938210,0.55016425,644.66,643.42,0.92983895]
[1746798938404,0.27995589,644.65,643.42,0.92983895]
[1746798939009,0.27020836,644.66,643.42,0.92983895]
[1746798939409,0.28002563,644.65,643.42,0.92983895]
[1746798940809,0.28002563,644.64,643.42,0.92983895]
[1746798941104,0.55025602,644.64,643.42,0.92983895]
[1746798941308,0.28002563,644.63,643.42,0.92983895]
[1746798941504,0.28002563,644.62,643.42,0.92983895]
[1746798942009,0.28002563,644.63,643.42,0.92983895]
[1746798942707,0.28002563,644.63,643.42,1.43783895]
[1746798943911,0.27023249,644.62,643.42,1.43783895]
[1746798944310,0.28002563,644.61,643.42,1.43783895]
[1746798945912,0.27023249,644.62,643.42,1.43783895]
[1746798946814,0.28002274,644.61,643.42,1.43783895]
[1746798950014,0.2701727,644.6,643.42,1.43783895]
[1746798950520,0.28002274,644.59,643.42,1.43783895]
[1746798953022,0.27016851,644.58,643.42,1.43783895]
[1746798953621,0.28002274,644.57,643.42,1.43783895]
[1746798956024,0.2701706,644.56,643.42,1.43783895]
[1746798956325,0.28002274,644.55,643.42,1.43783895]
[1746798958627,0.2701706,644.56,643.42,1.43783895]
[1746798958822,0.463,644.54,643.42,1.43783895]
[1746798961734,0.27992068,644.53,643.42,1.43783895]
[1746798967534,0.27992068,644.53,643.43,1.14829202]
[1746798967937,0.27992068,644.53,643.44,1.14829202]
[1746798968141,0.463,644.54,643.45,1.14829202]
[1746798968637,0.463,644.54,643.46,1.14829202]
[1746798968839,0.27991707,644.53,643.46,1.14829202]
[1746798969039,0.27991707,644.53,643.48,0.31080997]
[1746798969734,0.27991707,644.53,643.49,1.82429202]
[1746798969940,0.27991707,644.53,643.51,0.31079548]
[1746798970140,0.27991707,644.53,643.52,1.14829202]
[1746798970541,0.27991707,644.53,643.54,0.31078099]
[1746798970939,0.27991707,644.53,643.55,1.14829202]
[1746798971341,0.27991707,644.53,643.56,1.14829202]
[1746798971541,0.27991707,644.53,643.57,1.14829202]
[1746798971743,0.27991707,644.53,643.59,0.31075684]
[1746798972139,0.27991707,644.53,643.6,1.14829202]
[1746798972342,0.27991707,645.72,643.61,1.14829202]
[1746798972542,0.27991707,645.72,643.62,1.14829202]
[1746798972837,0.27991707,645.71,643.62,1.14829202]
[1746798973042,0.27991707,645.7,643.63,1.14829202]
[1746798973244,0.27991707,645.69,643.63,1.14829202]
[1746798973644,0.27991707,645.68,643.64,1.14829202]
[1746798973943,0.27991707,645.67,643.64,1.14829202]
[1746798974144,0.27991707,645.67,643.65,1.14829202]
[1746798974443,0.27991707,645.66,643.66,1.14829202]
[1746798974944,0.27991707,645.66,643.68,0.31071339]
[1746798975137,0.466,645.65,643.68,0.31071339]
[1746798975337,0.74591707,645.65,643.68,0.31071339]
[1746798975542,0.27991707,645.64,643.69,1.14829202]
[1746798975939,0.27991707,645.63,643.71,0.31069891]
[1746798976348,0.27991707,645.62,643.72,1.14829202]
[1746798976541,0.27991707,645.61,643.72,1.14829202]
[1746798976845,0.27991707,645.61,643.71,0.31069891]
[1746798977046,0.27991707,645.6,643.71,0.31069891]
[1746798977343,0.27991707,645.59,643.71,0.31069891]
[1746798977647,0.27991707,645.58,643.72,1.15088299]
[1746798977948,0.27991707,645.58,643.71,0.31069891]
[1746798978148,0.27991707,645.57,643.71,0.31069891]
[1746798978348,2.03334999,645.53,643.71,0.31069891]
[1746798978744,2.03334999,645.53,643.72,1.15082504]
[1746798978948,0.27991707,645.52,643.72,1.15082504]
[1746798979243,0.27991707,645.51,643.74,0.31068443]
[1746798979446,0.27991707,645.5,643.74,0.31068443]
[1746798979751,0.27991707,645.49,643.74,0.31068443]
[1746798979944,0.27991707,645.48,643.74,0.31068443]
[1746798980345,0.27991707,645.47,643.74,0.31068443]
[1746798980646,0.27991707,645.46,643.74,0.31068443]
[1746798980949,0.27991707,645.45,643.74,0.31068443]
[1746798981152,0.27991707,645.44,643.74,0.31068443]
[1746798981350,0.27991707,645.43,643.74,0.31068443]
[1746798981544,0.27991707,645.42,643.74,0.31068443]
[1746798981850,0.55005307,645.41,643.74,0.31068443]
[1746798982050,0.27991707,645.4,643.74,0.31068443]
[1746798982251,2.03334999,645.02,643.74,0.31068443]
[1746798982447,0.27991707,645.01,643.74,0.31068443]
[1746798982750,0.27991707,645.0,643.74,0.31068443]
[1746798982953,0.27991707,644.99,643.74,0.31068443]
[1746798983246,0.27991707,644.98,643.74,0.31068443]
[1746798983452,0.27991707,644.97,643.74,0.31068443]
[1746798983646,0.27991707,644.96,643.74,0.31068443]
[1746798983846,0.27991707,644.95,643.74,0.31068443]
[1746798984150,0.27991707,644.94,643.74,0.31068443]
[1746798984350,0.27991707,644.93,643.74,0.31068443]
[1746798984550,0.27991707,644.92,643.74,0.31068443]
[1746798984750,0.27991707,644.91,643.74,0.31068443]
[1746798984946,0.27991707,644.9,643.74,0.31068443]
[1746798985150,0.27991707,644.89,643.74,0.31068443]
[1746798985451,0.27991707,644.88,643.74,0.31068443]
[1746798985652,0.27991707,644.87,643.74,0.31068443]
[1746798985852,0.27991707,644.86,643.74,0.31068443]
[1746798986250,2.03334999,645.09,643.74,0.31068443]
[1746798986547,0.28017124,645.08,643.74,0.31068443]
[1746798986750,0.28017124,645.07,643.74,0.31068443]
[1746798986947,0.28017124,645.06,643.74,0.31068443]
[1746798987148,2.03334999,644.95,643.74,0.31068443]
[1746798987552,0.28017124,644.94,643.74,0.31068443]
[1746798987854,0.28017124,644.93,643.74,0.31068443]
[1746798988055,0.28017124,644.92,643.74,0.31068443]
[1746798988356,0.28017124,644.91,643.74,0.31068443]
[1746798988555,0.28017124,644.9,643.74,0.31068443]
[1746798988853,0.28017124,644.89,643.74,0.31068443]
[1746798989157,0.27022095,644.91,643.74,0.31068443]
[1746798989354,0.28011874,644.9,643.74,0.31068443]
[1746798989654,0.28011874,644.89,643.74,0.31068443]
[1746798989856,0.28011874,644.88,643.74,0.31068443]
[1746798990050,0.28011874,644.87,643.74,0.31068443]
[1746798990252,0.28011874,644.86,643.74,0.31068443]
[1746798990453,0.28011874,644.85,643.74,0.31068443]
[1746798990754,0.28011874,644.84,643.74,0.31068443]
[1746798990956,0.28011874,644.83,643.74,0.31068443]
[1746798991150,0.28011874,644.82,643.74,0.31068443]
[1746798991354,0.28011874,644.81,643.74,0.31068443]
[1746798991559,0.27022095,644.91,643.74,0.31068443]
[1746798991759,0.28011866,644.9,643.74,0.31068443]
[1746798991957,0.27022515,644.8,643.74,0.31068443]
[1746798992257,0.28011866,644.79,643.74,0.31068443]
[1746798992556,0.28011866,644.78,643.74,0.31068443]
[1746798992750,0.28011866,644.77,643.74,0.31068443]
[1746798993151,0.28011866,644.76,643.74,0.31068443]
[1746798993458,0.28011866,644.75,643.74,0.31068443]
[1746798993652,0.28011866,644.74,643.74,0.31068443]
[1746798993853,0.28011866,644.73,643.74,0.31068443]
[1746798994058,0.28011866,644.72,643.74,0.31068443]
[1746798994254,0.28011866,644.71,643.74,0.31068443]
[1746798994454,0.28011866,644.7,643.74,0.31068443]
[1746798994758,0.28011866,644.69,643.74,0.31068443]
[1746798995057,0.28011866,644.68,643.74,0.31068443]
[1746798995257,0.27022725,644.79,643.74,0.31068443]
[1746798995552,0.28011335,644.78,643.74,0.31068443]
[1746798995757,0.28011335,644.77,643.74,0.31068443]
[1746798995953,0.28011335,644.76,643.74,0.31068443]
[1746798996259,0.28011335,644.75,643.74,0.31068443]
[1746798996455,0.28011335,644.74,643.74,0.31068443]
[1746798996656,0.28011335,644.73,643.74,0.31068443]
[1746798996859,0.28011335,644.72,643.74,0.31068443]
[1746798997059,0.28011335,644.71,643.74,0.31068443]
[1746798997259,0.28011335,644.7,643.74,0.31068443]
[1746798997454,0.28011335,644.69,643.74,0.31068443]
[1746798997654,0.28011335,644.68,643.74,0.31068443]
[1746798997853,0.28011335,644.67,643.74,0.31068443]
[1746798998154,0.28011335,644.66,643.74,0.31068443]
[1746798998355,0.28011335,644.65,643.74,0.31068443]
[1746798998557,0.28011335,644.64,643.74,0.31068443]
[1746798998759,0.28011335,644.63,643.74,0.31068443]
[1746798998953,0.28011335,644.62,643.74,0.31068443]
[1746798999157,0.28011335,644.61,643.74,0.31068443]
[1746798999460,0.28011335,644.6,643.74,0.31068443]
[1746798999659,0.28011335,644.66,643.74,0.31068443]
[1746799000561,0.27017794,644.67,643.74,0.31068443]
[1746799000759,0.28012115,644.66,643.74,0.31068443]
[1746799004364,0.28012115,644.66,643.75,0.616]
[1746799005163,0.743,644.65,643.75,0.616]
[1746799005364,0.28012115,644.64,643.75,0.616]
[1746799006767,0.28012115,644.63,643.75,0.616]
[1746799007160,0.27024299,644.63,643.75,0.616]
[1746799007661,0.28013204,644.62,643.75,0.616]
[1746799007964,0.28013204,644.61,643.75,0.616]
[1746799008366,0.28013204,644.6,643.75,0.616]
[1746799008761,0.27024299,644.63,643.75,0.616]
[1746799009270,0.27024299,644.63,643.76,0.608]
[1746799009568,0.28011212,644.62,643.76,0.608]
[1746799010067,0.55034251,644.61,643.76,0.608]
[1746799010967,0.28011212,644.6,643.76,0.608]
[1746799011467,0.28011212,644.59,643.76,0.608]